bitfinex-derivatives/quotes_ETHF0:USTF0_20250702
["timestamp","ask_amount","ask_price","bid_price","bid_amount"]
[1751430618434,24.995,2431.2,2431.1,3.71806518]
[1751430618732,25.81753,2431.2,2431.1,3.71806518]
[1751430619133,0.82255,2431.1,2431.0,41.461]
[1751430619835,0.82255,2431.1,2431.0,0.661]
[1751430620234,0.82268,2430.7,2430.6,5.72539496]
[1751430620634,3.21234518,2430.7,2430.6,5.72539496]
[1751430620836,0.82272,2430.6,2430.5,0.6838]
[1751430621636,0.82278,2430.4,2430.3,2.1319]
[1751430621844,0.82278,2430.4,2430.3,0.702]
[1751430622048,0.82278,2430.4,2430.3,1.3858]
[1751430622634,0.82282,2430.3,2430.2,40.8]
[1751430623036,25.8348,2430.4,2430.2,41.62285]
[1751430623238,0.82282,2430.3,2430.2,41.62285]
[1751430623438,0.82282,2430.3,2430.2,43.06515]
[1751430623639,0.82282,2430.3,2430.2,42.2423]
[1751430626848,25.8278,2430.4,2430.2,43.06515]
[1751430627047,25.8278,2430.4,2430.3,3.75706518]
[1751430627239,0.8228,2430.4,2430.3,3.75706518]
[1751430629153,0.8228,2430.4,2430.3,4.57988518]
[1751430629447,0.8228,2430.4,2430.3,3.75706518]
[1751430631852,0.8228,2430.4,2430.3,4.44616518]
[1751430632055,0.82282,2430.3,2430.2,40.8]
[1751430633955,0.82282,2430.3,2430.2,41.62285]
[1751430634255,0.82282,2430.3,2430.2,42.93705]
[1751430634750,25.81281,2430.4,2430.3,0.82282]
[1751430635059,25.81281,2430.4,2430.3,3.70386518]
[1751430635251,25.81081,2430.4,2430.3,5.22918518]
[1751430635453,25.81081,2430.4,2430.3,4.40636518]
[1751430637256,25.80781,2430.4,2430.3,5.10016518]
[1751430637757,25.80781,2430.4,2430.3,4.39766518]
[1751430638960,25.80781,2430.4,2430.3,5.06696518]
[1751430640949,0.82281,2430.4,2430.3,5.06696518]
[1751430641156,25.79381,2430.4,2430.3,5.06696518]
[1751430644465,0.82281,2430.4,2430.3,3.75276518]
[1751430644665,25.78881,2430.4,2430.3,3.75276518]
[1751430646166,25.78881,2430.4,2430.3,1.3631]
[1751430646365,24.966,2430.4,2429.9,5.73082448]
[1751430646567,0.82292,2430.0,2429.9,5.73082448]
[1751430646760,0.82295,2429.9,2429.8,6.45472448]
[1751430647266,0.82295,2429.9,2429.8,0.7239]
[1751430649364,0.82295,2429.9,2429.8,3.11356518]
[1751430649564,24.96,2430.0,2429.9,0.82295]
[1751430649869,25.78287,2430.2,2429.9,3.78226518]
[1751430650068,25.78287,2430.2,2430.1,2.38966518]
[1751430650274,0.82284,2430.3,2430.1,2.38966518]
[1751430650469,25.78881,2430.4,2430.2,2.7601]
[1751430650670,25.78881,2430.4,2430.3,3.78226518]
[1751430651570,25.78881,2430.4,2430.3,4.60508518]
[1751430652870,24.966,2430.4,2430.3,4.60508518]
[1751430653071,25.78878,2430.4,2430.3,4.60508518]
[1751430653372,24.966,2430.4,2430.3,4.60508518]
[1751430653574,25.78278,2430.4,2430.3,4.60508518]
[1751430654374,0.82278,2430.4,2430.3,4.60508518]
[1751430654568,25.78078,2430.4,2430.3,4.60508518]
[1751430656570,0.82282,2430.3,2430.2,1.3675]
[1751430659375,0.82282,2430.3,2430.2,2.19035]
[1751430659875,0.82282,2430.3,2430.2,1.3675]
[1751430660780,0.82282,2430.3,2430.2,3.75716518]
[1751430663684,25.78082,2430.3,2430.2,3.75716518]
[1751430665179,25.78082,2430.3,2430.2,3.05586518]
[1751430666480,25.78082,2430.3,2430.2,0.6662]
[1751430667790,0.82285,2430.2,2430.1,0.6765]
[1751430667992,0.82292,2430.0,2429.9,5.73082448]
[1751430668283,0.82295,2429.9,2429.8,5.73082448]
[1751430668484,1.50845,2429.9,2429.8,5.73082448]
[1751430668686,0.82299,2429.8,2429.7,48.92048966]
[1751430669791,0.82299,2429.8,2429.7,46.53082448]
[1751430673595,0.80299,2429.8,2429.7,46.53082448]
[1751430674092,0.80299,2429.8,2429.7,5.73082448]
[1751430674394,0.82302,2429.7,2429.6,6.43792448]
[1751430677189,0.82302,2429.7,2429.6,0.7071]
[1751430679294,0.82306,2429.6,2429.5,0.7264]
[1751430679694,0.82306,2429.6,2429.5,1.4349]
[1751430680097,25.78406,2429.6,2429.5,1.4349]
[1751430682004,0.82316,2429.3,2429.2,5.73082448]
[1751430682301,0.82316,2429.3,2429.2,0.6847]
[1751430682504,0.82316,2429.3,2429.2,2.92859]
[1751430683502,0.82316,2429.3,2429.2,2.1054]
[1751430683702,0.82316,2429.3,2429.2,0.6847]
[1751430689311,25.78616,2429.3,2429.2,1.50788]
[1751430689508,25.78616,2429.3,2429.2,2.87098]
[1751430690413,0.82316,2429.3,2429.2,2.87098]
[1751430690607,25.78614,2429.4,2429.3,0.82315]
[1751430690801,25.78614,2429.4,2429.3,4.57591518]
[1751430691211,0.82314,2429.4,2429.3,3.75276518]
[1751430691413,25.78714,2429.4,2429.3,3.75276518]
[1751430691707,0.82314,2429.4,2429.3,3.75276518]
[1751430691914,25.78711,2429.5,2429.4,0.82312]
[1751430692113,25.78711,2429.5,2429.4,3.82896518]
[1751430692612,24.964,2429.5,2429.2,0.6847]
[1751430692911,0.82316,2429.3,2429.2,0.6847]
[1751430694213,24.979,2429.3,2429.2,3.89755518]
[1751430694810,24.981,2429.4,2429.2,3.07436518]
[1751430695014,24.981,2429.4,2429.3,1.4026]
[1751430695015,25.80415,2429.4,2429.3,1.4026]
[1751430695515,0.82316,2429.3,2429.2,1.365]
[1751430695708,0.82316,2429.3,2429.2,2.7676]
[1751430698014,0.82316,2429.3,2429.2,3.59077]
[1751430698414,25.80414,2429.4,2429.2,3.59077]
[1751430698715,25.80214,2429.4,2429.3,3.80556518]
[1751430698904,25.80214,2429.4,2429.3,4.51236518]
[1751430702404,25.80214,2429.4,2429.3,0.7068]
[1751430703405,0.82316,2429.3,2429.2,0.6847]
[1751430704113,25.79914,2429.4,2429.3,0.82316]
[1751430704316,25.79914,2429.4,2429.3,2.38966518]
[1751430704810,25.79914,2429.4,2429.3,3.71986518]
[1751430707513,25.79914,2429.4,2429.2,0.6847]
[1751430707514,24.976,2429.4,2429.2,0.6847]
[1751430707818,0.82319,2429.2,2429.1,0.6586]
[1751430708621,0.82326,2429.0,2428.9,5.73082448]
[1751430708820,0.82329,2428.9,2428.8,7.85132448]
[1751430710117,0.82329,2428.9,2428.8,2.1205]
[1751430710619,0.82329,2428.9,2428.8,0.724]
[1751430711429,0.82329,2428.9,2428.8,2.0604]
[1751430712619,0.82329,2428.9,2428.8,0.724]
[1751430714314,0.80329,2428.9,2428.8,0.724]
[1751430717525,25.78329,2428.9,2428.8,0.724]
[1751430717824,25.78329,2428.9,2428.8,2.1598]
[1751430718940,25.78329,2428.9,2428.8,0.724]
[1751430719821,25.77929,2428.9,2428.8,0.724]
[1751430720626,25.77829,2428.9,2428.8,0.724]
[1751430721323,25.77829,2428.9,2428.8,2.1111]
[1751430721726,25.77829,2428.9,2428.8,2.93443]
[1751430722028,25.77829,2428.9,2428.8,4.50076518]
[1751430722229,5.16864518,2429.3,2428.8,4.50076518]
[1751430722230,0.721,2429.3,2428.8,4.50076518]
[1751430722432,0.82329,2428.9,2428.8,4.50076518]
[1751430722832,0.82328,2429.0,2428.8,5.32409518]
[1751430723133,0.82328,2429.0,2428.9,1.3231]
[1751430723328,0.82328,2429.0,2428.9,2.14639]
[1751430724034,24.972,2429.0,2428.9,1.3231]
[1751430724232,25.79526,2429.0,2428.9,2.14639]
[1751430724434,25.79526,2429.0,2428.9,1.3231]
[1751430724834,25.79526,2429.0,2428.9,2.14639]
[1751430725532,25.79526,2429.0,2428.9,1.3231]
[1751430726334,0.82326,2429.0,2428.9,1.3231]
[1751430726730,0.82329,2428.9,2428.8,3.93697518]
[1751430727834,0.82328,2429.0,2428.9,0.82329]
[1751430728035,0.82328,2429.0,2428.9,2.14689]
[1751430728534,0.82328,2429.0,2428.9,1.3236]
[1751430728729,0.82328,2429.0,2428.9,2.14689]
[1751430730037,0.82323,2429.1,2429.0,0.82324]
[1751430730337,0.82323,2429.1,2429.0,4.61350518]
[1751430730736,0.82323,2429.1,2429.0,3.79026518]
[1751430731038,0.82323,2429.1,2429.0,4.61352518]
[1751430732634,0.82323,2429.1,2429.0,2.22386]
[1751430732940,0.82323,2429.1,2429.0,1.4006]
[1751430734742,0.82323,2429.1,2429.0,2.22386]
[1751430735043,0.82323,2429.1,2429.0,1.4006]
[1751430735441,0.82329,2428.9,2428.8,9.66778966]
[1751430735643,0.82329,2428.9,2428.8,6.45482448]
[1751430736039,3.21295518,2428.9,2428.8,5.73082448]
[1751430736537,0.82333,2428.8,2428.7,5.73082448]
[1751430736739,26.47863,2428.8,2428.7,5.73082448]
[1751430736938,0.82336,2428.7,2428.6,0.698]
[1751430740750,24.97,2428.7,2428.6,0.698]
[1751430740952,24.97,2428.7,2428.6,2.87739]
[1751430741347,24.97,2428.7,2428.6,8.60821448]
[1751430741747,24.97,2428.7,2428.6,2.87739]
[1751430742054,25.7943,2428.9,2428.8,0.82332]
[1751430742243,24.971,2428.9,2428.8,3.21298518]
[1751430742646,25.79429,2428.9,2428.8,2.38966518]
[1751430743145,25.79429,2428.9,2428.8,3.74566518]
[1751430744054,25.79429,2428.9,2428.8,4.56899518]
[1751430744948,25.79429,2428.9,2428.8,3.74566518]
[1751430745353,25.79429,2428.9,2428.8,4.56899518]
[1751430745959,24.971,2428.9,2428.8,4.56899518]
[1751430746147,25.79429,2428.9,2428.8,4.56899518]
[1751430746353,25.79429,2428.9,2428.8,2.17933]
[1751430746553,25.79429,2428.9,2428.8,1.356]
[1751430746953,25.79429,2428.9,2428.8,2.17933]
[1751430747154,0.82333,2428.8,2428.7,1.50843]
[1751430747353,0.82333,2428.8,2428.7,0.6851]
[1751430748858,0.82336,2428.7,2428.6,0.698]
[1751430750858,0.82336,2428.7,2428.6,1.52139]
[1751430751055,0.82336,2428.7,2428.6,2.92459]
[1751430751056,25.79436,2428.7,2428.6,2.92459]
[1751430751260,25.79436,2428.7,2428.6,5.31425518]
[1751430751560,2.05813,2429.1,2428.6,5.31425518]
[1751430751561,0.82335,2428.8,2428.6,5.31425518]
[1751430751762,0.82335,2428.8,2428.7,1.4032]
[1751430753664,24.971,2429.0,2428.9,0.82332]
[1751430754457,11.606,2429.3,2429.2,0.82322]
[1751430754760,37.39922,2429.3,2429.1,0.82325]
[1751430755166,0.82322,2429.3,2429.1,2.23975]
[1751430755362,24.97,2429.2,2429.1,2.23975]
[1751430755664,24.97,2429.2,2429.1,0.82325]
[1751430756664,0.82322,2429.2,2429.0,2.19937]
[1751430756866,25.79222,2429.2,2429.0,2.19937]
[1751430758462,0.82326,2429.1,2429.0,0.7041]
[1751430761566,0.82329,2429.0,2428.9,0.7041]
[1751430761764,0.82334,2428.9,2428.7,0.82337]
[1751430761963,2.38966518,2429.1,2428.7,0.82337]
[1751430762678,0.82336,2428.8,2428.6,2.2488]
[1751430762972,0.82339,2428.7,2428.6,1.4254]
[1751430766969,0.82339,2428.7,2428.6,0.718]
[1751430767774,0.82339,2428.6,2428.5,46.53082448]
[1751430770380,0.82339,2428.6,2428.5,5.73082448]
[1751430770785,0.82343,2428.5,2428.4,6.45202448]
[1751430770982,0.82343,2428.5,2428.4,47.25202448]
[1751430772278,0.82343,2428.5,2428.4,48.07548448]
[1751430772472,0.82343,2428.5,2428.4,48.62742448]
[1751430774784,0.82343,2428.5,2428.4,47.25202448]
[1751430776782,0.82343,2428.5,2428.4,48.07548448]
[1751430776982,0.82343,2428.5,2428.4,49.52888448]
[1751430778086,0.82343,2428.5,2428.4,48.70542448]
[1751430780382,0.82343,2428.5,2428.4,47.25202448]
[1751430782088,0.82343,2428.5,2428.4,48.07548448]
[1751430782282,0.82343,2428.5,2428.4,49.46218448]
[1751430782481,0.82343,2428.5,2428.4,48.63872448]
[1751430783189,0.82343,2428.5,2428.4,42.9079]
[1751430785288,3.21309518,2428.5,2428.4,40.8]
[1751430785490,0.82346,2428.4,2428.3,6.18789448]
[1751430785686,0.82346,2428.4,2428.3,0.45707]
[1751430785888,0.82346,2428.4,2428.3,41.25707]
[1751430788386,0.78346,2428.4,2428.3,41.25707]
[1751430792587,0.78346,2428.4,2428.3,42.66567]
[1751430792791,0.82344,2428.5,2428.4,0.82345]
[1751430795594,11.605,2429.0,2428.3,43.64673518]
[1751430795793,0.82333,2428.8,2428.7,2.38966518]
[1751430796599,0.82333,2428.8,2428.6,0.82339]
[1751430796798,0.82333,2428.8,2428.7,0.6654]
[1751430797895,0.82331,2428.9,2428.7,1.48876]
[1751430798604,11.605,2429.0,2428.7,1.48876]
[1751430798605,0.82333,2428.8,2428.7,1.48876]
[1751430798790,11.605,2429.0,2428.8,0.82332]
[1751430798996,12.42828,2429.0,2428.8,0.82332]
[1751430799499,0.82329,2428.9,2428.8,0.82332]
[1751430800206,0.82329,2428.9,2428.7,1.48874]
[1751430800398,0.82329,2428.9,2428.7,0.6654]
[1751430800699,0.82333,2428.8,2428.7,1.48875]
[1751430801102,0.8233,2428.9,2428.8,0.82332]
[1751430801501,0.8233,2428.9,2428.7,1.48874]
[1751430802304,0.82333,2428.8,2428.7,1.48875]
[1751430802601,0.82331,2428.9,2428.7,1.48875]
[1751430803005,0.82328,2429.0,2428.8,0.82333]
[1751430803201,0.82332,2428.9,2428.7,1.48874]
[1751430803401,0.82328,2429.0,2428.8,0.82333]
[1751430803701,0.82328,2429.0,2428.8,0.8233]
[1751430803902,0.82328,2429.0,2428.9,0.82329]
[1751430804705,13.99366518,2429.2,2428.9,0.82329]
[1751430804903,0.8233,2428.9,2428.7,3.87840518]
[1751430805309,0.82328,2429.0,2428.8,0.82333]
[1751430807409,0.82328,2429.0,2428.9,0.6685]
[1751430808903,0.82328,2429.0,2428.9,1.49179]
[1751430809303,0.82328,2429.0,2428.9,0.6685]
[1751430811412,0.82325,2429.1,2428.9,0.6685]
[1751430811607,0.82326,2429.0,2428.9,0.6685]
[1751430812210,0.82326,2429.0,2428.9,1.49179]
[1751430812412,0.82326,2429.0,2428.9,0.6685]
[1751430812612,0.82326,2429.0,2428.9,1.49179]
[1751430812911,0.82326,2429.0,2428.9,1.49177]
[1751430813811,25.78525,2429.1,2428.9,1.49177]
[1751430814012,25.78525,2429.1,2429.0,1.3433]
[1751430814210,25.78525,2429.1,2429.0,2.16656]
[1751430814414,25.78525,2429.1,2429.0,1.3433]
[1751430814710,24.962,2429.2,2429.0,2.16656]
[1751430814910,25.78519,2429.2,2429.1,2.0253]
[1751430815312,25.78419,2429.2,2429.1,2.0253]
[1751430816806,0.82319,2429.2,2429.1,2.0253]
[1751430817007,24.96,2429.2,2429.1,2.84852]
[1751430817206,0.82317,2429.3,2429.2,0.82319]
[1751430817504,25.78317,2429.3,2429.2,2.15439]
[1751430817705,0.82315,2429.4,2429.2,2.88059]
[1751430817903,25.78316,2429.3,2429.2,1.54939]
[1751430818204,25.78316,2429.3,2429.2,0.7262]
[1751430819112,25.78316,2429.3,2429.2,1.4061]
[1751430819807,0.82316,2429.3,2429.2,1.4061]
[1751430827417,0.82315,2429.4,2429.2,2.22929]
[1751430827612,0.82315,2429.4,2429.3,0.82316]
[1751430828523,0.82315,2429.4,2429.2,4.61892518]
[1751430828723,0.82316,2429.3,2429.2,4.61892518]
[1751430832328,0.82315,2429.4,2429.2,4.61892518]
[1751430833222,0.82316,2429.3,2429.2,4.61892518]
[1751430833623,0.82315,2429.4,2429.2,4.61892518]
[1751430834927,0.82316,2429.3,2429.2,1.4061]
[1751430836429,0.82316,2429.3,2429.2,2.22929]
[1751430840531,0.82316,2429.3,2429.2,1.4061]
[1751430840727,2.38966518,2429.4,2429.0,6.55407448]
[1751430840728,0.82322,2429.1,2429.0,6.55407448]
[1751430840928,0.82322,2429.1,2429.0,0.82325]
[1751430841324,0.82322,2429.1,2429.0,1.49215]
[1751430841534,0.82321,2429.2,2429.0,1.49215]
[1751430842638,0.82322,2429.1,2429.0,0.6689]
[1751430842934,0.82322,2429.1,2429.0,1.49216]
[1751430844037,0.82321,2429.2,2429.1,0.82322]
[1751430844336,0.82321,2429.2,2429.0,1.49213]
[1751430844637,0.82321,2429.2,2429.0,7.22295448]
[1751430846636,0.82322,2429.1,2429.0,7.22295448]
[1751430846837,0.7216,2429.3,2429.0,7.22295448]
[1751430846838,0.82321,2429.2,2429.0,6.39972448]
[1751430847031,0.82321,2429.2,2429.0,7.22296448]
[1751430847336,0.7216,2429.3,2429.0,7.22296448]
[1751430847635,0.82322,2429.1,2429.0,6.39972448]
[1751430848138,0.82322,2429.1,2429.0,7.22298448]
[1751430848641,0.7216,2429.3,2429.0,6.39972448]
[1751430848831,0.82322,2429.1,2429.0,6.39972448]
[1751430849341,0.82322,2429.1,2429.0,7.22298448]
[1751430849843,0.8232,2429.2,2429.0,6.39972448]
[1751430850441,0.8232,2429.2,2429.0,7.22296448]
[1751430850941,0.82322,2429.1,2429.0,7.22296448]
[1751430851343,0.8232,2429.2,2429.1,0.82322]
[1751430851643,0.8232,2429.2,2429.0,7.22295448]
[1751430853143,0.8232,2429.2,2429.1,5.73082448]
[1751430853645,0.8232,2429.2,2429.1,6.42722448]
[1751430855044,0.8232,2429.2,2429.1,7.25044448]
[1751430855640,0.82317,2429.3,2429.1,7.25042448]
[1751430855840,0.82317,2429.3,2429.1,7.80432448]
[1751430856046,0.82317,2429.3,2429.1,8.62753448]
[1751430856249,0.82319,2429.2,2429.1,8.62753448]
[1751430856547,0.82319,2429.2,2429.1,7.80432448]
[1751430856844,0.82319,2429.2,2429.1,8.62754448]
[1751430857946,0.82319,2429.2,2429.1,7.80432448]
[1751430858446,0.82319,2429.2,2429.1,2.0735]
[1751430859048,0.82319,2429.2,2429.1,2.89672]
[1751430859650,0.82319,2429.2,2429.1,2.0735]
[1751430859848,0.82319,2429.2,2429.1,0.6964]
[1751430860250,0.82319,2429.2,2429.1,1.51962]
[1751430863150,0.82319,2429.2,2429.1,7.25044448]
[1751430864849,0.82319,2429.2,2429.1,2.88112]
[1751430866055,11.598,2429.7,2429.1,2.0579]
[1751430866249,0.82312,2429.4,2429.3,1.66941482]
[1751430866652,0.82312,2429.4,2429.3,2.35691482]
[1751430876367,0.82316,2429.3,2429.2,0.6615]
[1751430876568,2.49257482,2429.3,2429.2,0.6615]
[1751430878467,2.49257482,2429.3,2429.2,1.3583]
[1751430878666,2.49257482,2429.3,2429.2,0.6968]
[1751430883573,0.82316,2429.3,2429.2,0.6968]
[1751430891079,0.82316,2429.3,2429.2,1.51999]
[1751430891281,0.82316,2429.3,2429.2,0.6968]
[1751430891679,0.82316,2429.3,2429.2,2.127]
[1751430893889,0.82316,2429.3,2429.2,2.95019]
[1751430894181,0.82316,2429.3,2429.2,4.61960482]
[1751430897388,0.82316,2429.3,2429.2,3.79641482]
[1751430900392,0.82316,2429.3,2429.2,4.61960482]
[1751430900889,0.82316,2429.3,2429.2,3.79641482]
[1751430901996,0.82316,2429.3,2429.2,4.61960482]
[1751430902186,0.82314,2429.4,2429.3,0.82313]
[1751430902390,24.932,2429.6,2429.4,0.82311]
[1751430902593,24.932,2429.6,2429.5,3.80351482]
[1751430902791,25.75505,2429.6,2429.5,4.51561482]
[1751430903090,0.82297,2429.9,2429.7,0.823]
[1751430903290,0.82299,2429.8,2429.7,1.66941482]
[1751430903490,0.82299,2429.8,2429.7,42.46941482]
[1751430903889,0.82297,2429.9,2429.7,43.29243482]
[1751430904293,2.49240482,2429.8,2429.7,40.8]
[1751430904986,0.82299,2429.8,2429.7,40.8]
[1751430905183,0.82299,2429.8,2429.7,42.46941482]
[1751430906589,0.82299,2429.8,2429.7,43.29243482]
[1751430906797,0.82297,2429.9,2429.7,43.29243482]
[1751430908998,0.82297,2429.9,2429.8,0.6602]
[1751430911200,0.82295,2430.0,2429.8,1.48318]
[1751430911395,0.82295,2430.0,2429.9,1.66941482]
[1751430915497,0.82292,2430.1,2429.9,1.66941482]
[1751430915803,0.82286,2430.2,2430.1,0.82288]
[1751430916003,0.82289,2430.1,2429.9,0.82295]
[1751430916197,0.82289,2430.1,2430.0,43.29233482]
[1751430916599,0.82289,2430.1,2430.0,42.46941482]
[1751430917205,0.82287,2430.2,2430.0,43.29231482]
[1751430917403,0.82287,2430.2,2430.1,1.66941482]
[1751430917601,0.82287,2430.2,2430.1,2.35881482]
[1751430917796,0.82287,2430.2,2430.1,0.6894]
[1751430920101,0.82288,2430.1,2430.0,40.8]
[1751430921804,0.82292,2430.0,2429.9,0.712]
[1751430922303,0.82292,2430.0,2429.9,41.512]
[1751430924099,0.82292,2430.0,2429.9,42.33495]
[1751430924706,0.82292,2430.0,2429.9,41.512]
[1751430925508,0.82292,2430.0,2429.9,42.33495]
[1751430925708,0.82289,2430.1,2430.0,0.8229]
[1751430925910,0.82284,2430.3,2430.0,3.75711303]
[1751430926110,0.82284,2430.3,2430.2,2.38281303]
[1751430926309,0.8228,2430.4,2430.2,2.38281303]
[1751430926505,0.8228,2430.4,2430.3,1.3939]
[1751430926705,0.82276,2430.5,2430.3,2.91312]
[1751430927007,0.82276,2430.5,2430.4,4.59119303]
[1751430927310,0.82276,2430.5,2430.4,3.76841303]
[1751430930408,0.82276,2430.5,2430.4,5.31439303]
[1751430930811,0.82276,2430.5,2430.4,4.49161303]
[1751430931210,0.82276,2430.5,2430.4,5.31439303]
[1751430931812,0.82276,2430.5,2430.4,4.49161303]
[1751430935221,0.82276,2430.5,2430.4,3.76841303]
[1751430935518,0.82276,2430.5,2430.4,4.45501303]
[1751430935723,0.82274,2430.6,2430.4,5.27779303]
[1751430937723,0.82274,2430.6,2430.4,46.07779303]
[1751430938624,0.82274,2430.6,2430.4,45.39119303]
[1751430938820,0.82274,2430.6,2430.4,46.08629303]
[1751430940224,0.82273,2430.6,2430.4,46.08629303]
[1751430940920,0.82275,2430.5,2430.4,46.08629303]
[1751430941126,0.82274,2430.6,2430.4,46.08629303]
[1751430941426,0.82275,2430.5,2430.4,46.08629303]
[1751430943028,0.82275,2430.5,2430.4,45.26351303]
[1751430944329,0.82275,2430.5,2430.4,46.08629303]
[1751430951633,0.82275,2430.5,2430.4,45.26351303]
[1751430951831,0.82275,2430.5,2430.4,46.08629303]
[1751430953833,0.82275,2430.5,2430.4,45.37093223]
[1751430955037,0.82275,2430.5,2430.4,43.16255223]
[1751430955431,0.82278,2430.4,2430.3,0.7047]
[1751430956038,0.82282,2430.3,2430.2,1.66745223]
[1751430957834,0.82285,2430.2,2430.1,9.6358241]
[1751430959644,0.82285,2430.2,2430.1,3.87953044]
[1751430959847,0.82285,2430.2,2430.1,3.05665044]
[1751430960146,0.82285,2430.2,2430.1,9.61977306]
[1751430960443,0.82285,2430.2,2430.1,3.87953044]
[1751430960642,0.6637,2430.4,2430.1,3.87953044]
[1751430960643,0.82284,2430.3,2430.1,3.87953044]
[1751430960843,0.82284,2430.3,2430.2,6.4268734]
[1751430961443,0.82284,2430.3,2430.2,7.2497234]
[1751430961643,0.82284,2430.3,2430.2,6.4268734]
[1751430962946,0.82284,2430.3,2430.2,5.7404734]
[1751430963142,0.82285,2430.2,2430.1,8.79712384]
[1751430963444,0.82285,2430.2,2430.1,9.62000384]
[1751430963846,0.82285,2430.2,2430.1,8.79712384]
[1751430964547,0.82285,2430.2,2430.1,5.7404734]
[1751430964946,0.82288,2430.1,2430.0,6.4496734]
[1751430966046,0.82288,2430.1,2430.0,7.2725934]
[1751430966244,0.6637,2430.4,2430.0,7.2725934]
[1751430966447,0.82288,2430.1,2430.0,8.7043934]
[1751430966748,0.82288,2430.1,2430.0,7.8814734]
[1751430967739,0.82288,2430.1,2430.0,6.4496734]
[1751430967945,0.82288,2430.1,2430.0,7.2725934]
[1751430968140,0.82288,2430.1,2430.0,8.7043934]
[1751430968846,0.82288,2430.1,2430.0,9.3948934]
[1751430969644,0.82288,2430.1,2430.0,3.65442]
[1751430969943,0.6637,2430.4,2430.0,2.8315]
[1751430970247,0.82276,2430.5,2430.4,0.82277]
[1751430970449,0.82274,2430.6,2430.5,0.82275]
[1751430970743,0.82272,2430.6,2430.5,6.00870044]
[1751430971649,0.82272,2430.6,2430.5,5.18595044]
[1751430972745,0.82272,2430.6,2430.5,3.81165044]
[1751430972946,0.82272,2430.6,2430.5,1.429]
[1751430974144,0.82272,2430.6,2430.5,4.63440044]
[1751430975454,0.82272,2430.6,2430.5,3.81165044]
[1751430975953,0.82272,2430.6,2430.5,5.16895044]
[1751430991266,0.82272,2430.6,2430.5,5.99170044]
[1751430991468,0.82272,2430.6,2430.5,5.16895044]
[1751430991869,0.82272,2430.6,2430.5,5.99170044]
[1751430992270,0.8227,2430.7,2430.6,0.82271]
[1751430992470,0.8227,2430.7,2430.6,1.3801]
[1751430992770,0.8227,2430.7,2430.6,3.76275044]
[1751430994672,0.8227,2430.7,2430.6,1.3801]
[1751430994872,0.8227,2430.7,2430.6,2.38265044]
[1751430997974,0.8227,2430.7,2430.6,3.10255044]
[1751430998371,0.8227,2430.7,2430.6,3.92527044]
[1751430998575,0.8227,2430.7,2430.6,4.41735044]
[1751430998775,0.8227,2430.7,2430.6,3.69745044]
[1751430998975,0.8227,2430.7,2430.6,4.41735044]
[1751431000475,0.8227,2430.7,2430.6,5.24007044]
[1751431000775,0.8227,2430.7,2430.6,4.41735044]
[1751431001077,0.8227,2430.7,2430.6,5.24007044]
[1751431001378,0.8227,2430.7,2430.6,4.52017044]
[1751431001578,0.8227,2430.7,2430.6,5.17917044]
[1751431003878,0.8227,2430.7,2430.6,4.46374048]
[1751431007379,0.8227,2430.7,2430.6,3.64102048]
[1751431008381,0.8227,2430.7,2430.6,4.46374048]
[1751431010181,0.82272,2430.6,2430.5,0.82273]
[1751431010378,0.82272,2430.6,2430.5,0.6642]
[1751431010972,0.82272,2430.6,2430.5,1.48695]
[1751431013881,0.82271,2430.7,2430.6,0.82271]
[1751431014081,24.885,2430.9,2430.7,0.82268]
[1751431014283,24.885,2430.9,2430.8,1.66722048]
[1751431014483,0.82261,2430.9,2430.8,2.48987048]
[1751431014684,25.70761,2430.9,2430.8,3.14807048]
[1751431015189,25.70761,2430.9,2430.8,2.32542048]
[1751431015687,25.70761,2430.9,2430.8,0.6582]
[1751431015885,25.70761,2430.9,2430.8,3.03967266]
[1751431017691,25.70761,2430.9,2430.8,3.86232266]
[1751431017884,0.82261,2430.9,2430.8,3.86232266]
[1751431018084,11.566,2431.3,2430.8,3.03967266]
[1751431018284,25.70654,2431.2,2431.1,3.20401266]
[1751431018584,25.70654,2431.2,2431.1,2.38147266]
[1751431018784,0.82254,2431.2,2431.1,3.20402266]
[1751431019081,25.70554,2431.2,2431.1,3.20402266]
[1751431019283,0.8225,2431.3,2431.1,2.38147266]
[1751431019483,24.883,2431.2,2431.1,3.20400266]
[1751431019983,25.70551,2431.2,2431.1,3.20400266]
[1751431020992,25.70551,2431.2,2431.1,2.38147266]
[1751431021490,25.70551,2431.2,2431.1,3.88802266]
[1751431021695,25.70551,2431.2,2431.1,3.06547266]
[1751431024195,0.82251,2431.2,2431.1,3.06547266]
[1751431024401,25.70251,2431.2,2431.1,0.684]
[1751431028598,24.88,2431.2,2430.8,2.38147266]
[1751431028806,0.82261,2430.9,2430.8,3.09317266]
[1751431030204,0.82261,2430.9,2430.8,3.91582266]
[1751431030705,0.82261,2430.9,2430.8,5.32412266]
[1751431031195,24.88,2431.2,2430.8,5.32412266]
[1751431031400,0.8226,2431.0,2430.8,5.32412266]
[1751431031804,0.82261,2430.9,2430.8,5.32412266]
[1751431032202,0.82261,2430.9,2430.8,4.50147266]
[1751431032399,0.82261,2430.9,2430.8,5.32412266]
[1751431033405,0.8226,2431.0,2430.8,5.32412266]
[1751431033808,0.82261,2430.9,2430.8,5.32412266]
[1751431035203,0.82265,2430.8,2430.7,0.82266]
[1751431035403,0.82265,2430.8,2430.7,3.92443266]
[1751431036410,0.82264,2430.9,2430.7,3.92443266]
[1751431036708,0.82264,2430.9,2430.7,5.28253266]
[1751431037509,0.82265,2430.8,2430.7,5.28253266]
[1751431037705,0.82265,2430.8,2430.7,2.90106]
[1751431037906,0.6874,2431.3,2430.7,3.10177266]
[1751431038108,11.564,2431.5,2431.2,2.38147266]
[1751431038309,0.82244,2431.4,2431.3,2.7769]